[Event "*** SCC Grand Prix: Titled Tuesday Blitz"]
[Site "Chess.com"]
[Date "2020.08.25"]
[Round "7"]
[White "Chess_Dog06"]
[Black "kleopl"]
[Result "0-1"]
[WhiteElo "2293"]
[BlackElo "2442"]
[TimeControl "180+1"]
[EndTime "11:18:46 PDT"]
[Termination "kleopl won by resignation"]

1. Nf3 {[%clk 0:03:00.7]} 1... c5 {[%clk 0:02:58.6]} 2. g3 {[%clk 0:02:58.8]}
2... Nc6 {[%clk 0:02:57.9]} 3. Bg2 {[%clk 0:02:52.5]} 3... e5 {[%clk 0:02:57.6]}
4. c4 {[%clk 0:02:52.4]} 4... d6 {[%clk 0:02:56.8]} 5. Nc3 {[%clk 0:02:52.5]}
5... g6 {[%clk 0:02:56.7]} 6. O-O {[%clk 0:02:53.2]} 6... Bg7 {[%clk 0:02:56.8]}
7. Nd5 {[%clk 0:02:52.2]} 7... Nge7 {[%clk 0:02:56.7]} 8. d3 {[%clk 0:02:52.5]}
8... O-O {[%clk 0:02:56.5]} 9. Nd2 {[%clk 0:02:53.1]} 9... f5 {[%clk 0:02:54]}
10. a3 {[%clk 0:02:52]} 10... a5 {[%clk 0:02:52.3]} 11. Rb1 {[%clk 0:02:52.2]}
11... a4 {[%clk 0:02:50.6]} 12. f4 {[%clk 0:02:43.9]} 12... Be6 {[%clk
0:02:38.7]} 13. fxe5 {[%clk 0:02:36.1]} 13... dxe5 {[%clk 0:02:38.7]} 14. Qc2
{[%clk 0:02:35.5]} 14... Nd4 {[%clk 0:02:34.9]} 15. Nxe7+ {[%clk 0:02:33.8]}
15... Qxe7 {[%clk 0:02:34.1]} 16. Qd1 {[%clk 0:02:32.7]} 16... Rfd8 {[%clk
0:02:30.9]} 17. Nf3 {[%clk 0:02:32.1]} 17... Bxc4 {[%clk 0:02:18.8]} 18. Nxd4
{[%clk 0:02:20]} 18... Rxd4 {[%clk 0:02:19.7]} 19. Be3 {[%clk 0:02:20.1]} 19...
Rd7 {[%clk 0:01:49.4]} 20. Qc2 {[%clk 0:01:58.2]} 20... Ba2 {[%clk 0:01:47.7]}
21. Ra1 {[%clk 0:01:14.8]} 21... Bb3 {[%clk 0:01:47.5]} 22. Qxc5 {[%clk
0:01:15.1]} 22... Qxc5 {[%clk 0:01:37.5]} 23. Bxc5 {[%clk 0:01:16]} 23... Rc8
{[%clk 0:01:37.6]} 24. Be3 {[%clk 0:00:50.3]} 24... Rc2 {[%clk 0:01:34.7]} 25.
Rac1 {[%clk 0:00:43.6]} 25... Rxe2 {[%clk 0:01:32.1]} 26. Rc8+ {[%clk
0:00:41.7]} 26... Kf7 {[%clk 0:01:30.5]} 27. Bc5 {[%clk 0:00:38.1]} 27... Rxb2
{[%clk 0:01:23.7]} 28. Bb4 {[%clk 0:00:30.9]} 28... Be6 {[%clk 0:01:03.8]} 29.
Rfc1 {[%clk 0:00:30.9]} 29... Bh6 {[%clk 0:01:02]} 30. R1c7 {[%clk 0:00:29.7]}
30... Be3+ {[%clk 0:01:00.2]} 31. Kf1 {[%clk 0:00:29.4]} 31... Rf2+ {[%clk
0:01:00.4]} 32. Kg1 {[%clk 0:00:28.6]} 32... Rc2+ {[%clk 0:00:58.8]} 0-1

[Event "*** SCC Grand Prix: Titled Tuesday Blitz"]
[Site "Chess.com"]
[Date "2020.08.25"]
[Round "7"]
[White "26andrej26"]
[Black "Khazieva_Elza"]
[Result "1-0"]
[WhiteElo "2603"]
[BlackElo "2416"]
[TimeControl "180+1"]
[EndTime "11:18:47 PDT"]
[Termination "26andrej26 won on time"]

1. e4 {[%clk 0:03:00.9]} 1... c5 {[%clk 0:02:59.9]} 2. Nf3 {[%clk 0:03:01.2]}
2... d6 {[%clk 0:03:00.3]} 3. d4 {[%clk 0:03:02.1]} 3... cxd4 {[%clk 0:03:01]}
4. Nxd4 {[%clk 0:03:03]} 4... Nf6 {[%clk 0:03:01.5]} 5. Nc3 {[%clk 0:03:03.7]}
5... Nc6 {[%clk 0:03:02.1]} 6. Bc4 {[%clk 0:03:04.2]} 6... e6 {[%clk 0:03:02.3]}
7. Bb3 {[%clk 0:03:03.6]} 7... Be7 {[%clk 0:03:02.3]} 8. Be3 {[%clk 0:03:01.8]}
8... Qc7 {[%clk 0:03:01.8]} 9. O-O {[%clk 0:03:01.8]} 9... a6 {[%clk 0:02:58.7]}
10. f4 {[%clk 0:03:02.1]} 10... O-O {[%clk 0:02:55.1]} 11. f5 {[%clk 0:03:02.2]}
11... e5 {[%clk 0:02:36.5]} 12. Nde2 {[%clk 0:03:00.5]} 12... h6 {[%clk
0:02:20.8]} 13. Ng3 {[%clk 0:02:59]} 13... Na5 {[%clk 0:02:14.3]} 14. Nh5 {[%clk
0:02:58]} 14... Nxb3 {[%clk 0:01:34.8]} 15. axb3 {[%clk 0:02:55.3]} 15... Bd7
{[%clk 0:01:23.5]} 16. Nxf6+ {[%clk 0:02:53.2]} 16... Bxf6 {[%clk 0:01:24.4]}
17. Nd5 {[%clk 0:02:53.9]} 17... Qd8 {[%clk 0:01:23.7]} 18. Bb6 {[%clk
0:02:53.2]} 18... Qc8 {[%clk 0:01:02.4]} 19. Nxf6+ {[%clk 0:02:51.6]} 19... gxf6
{[%clk 0:01:03.3]} 20. Rf3 {[%clk 0:02:51.5]} 20... Qc6 {[%clk 0:00:51.6]} 21.
Be3 {[%clk 0:02:44.6]} 21... Qxe4 {[%clk 0:00:35.6]} 22. Bxh6 {[%clk 0:02:43]}
22... Bxf5 {[%clk 0:00:33.9]} 23. Bxf8 {[%clk 0:02:38.9]} 23... Rxf8 {[%clk
0:00:32.8]} 24. Qxd6 {[%clk 0:02:37.1]} 24... Qxc2 {[%clk 0:00:24.1]} 25. Qxf6
{[%clk 0:02:27.8]} 25... Bg6 {[%clk 0:00:23]} 26. h4 {[%clk 0:01:46]} 26... e4
{[%clk 0:00:21.6]} 27. Rg3 {[%clk 0:01:40.4]} 27... Qc5+ {[%clk 0:00:20.9]} 28.
Kh2 {[%clk 0:01:36.6]} 28... e3 {[%clk 0:00:15.3]} 29. Rg5 {[%clk 0:01:31.2]}
29... Qc7+ {[%clk 0:00:14.4]} 30. Kh1 {[%clk 0:01:24.6]} 30... e2 {[%clk
0:00:13.8]} 31. h5 {[%clk 0:01:20.4]} 31... Re8 {[%clk 0:00:05.8]} 32. Re1
{[%clk 0:01:12.6]} 1-0

[Event "*** SCC Grand Prix: Titled Tuesday Blitz"]
[Site "Chess.com"]
[Date "2020.08.25"]
[Round "7"]
[White "1f3_2g41-0"]
[Black "romulocardoso"]
[Result "1-0"]
[WhiteElo "2444"]
[BlackElo "2035"]
[TimeControl "180+1"]
[EndTime "11:18:48 PDT"]
[Termination "1f3_2g41-0 won by resignation"]

1. e4 {[%clk 0:03:00.9]} 1... c5 {[%clk 0:02:57.9]} 2. Nf3 {[%clk 0:03:00.9]}
2... d6 {[%clk 0:02:58.2]} 3. d4 {[%clk 0:03:00.8]} 3... cxd4 {[%clk 0:02:59.1]}
4. Nxd4 {[%clk 0:03:01.4]} 4... Nf6 {[%clk 0:02:57.4]} 5. Nc3 {[%clk 0:03:02]}
5... g6 {[%clk 0:02:55.5]} 6. Be3 {[%clk 0:03:00.6]} 6... Bg7 {[%clk 0:02:55.2]}
7. f3 {[%clk 0:03:01.3]} 7... O-O {[%clk 0:02:51.5]} 8. Qd2 {[%clk 0:03:01.8]}
8... Nc6 {[%clk 0:02:45.7]} 9. Bc4 {[%clk 0:03:02.4]} 9... Bd7 {[%clk
0:02:45.7]} 10. h4 {[%clk 0:03:02.6]} 10... Rc8 {[%clk 0:02:44.3]} 11. Bb3
{[%clk 0:03:02.7]} 11... h5 {[%clk 0:02:43.8]} 12. O-O-O {[%clk 0:03:03.1]}
12... Ne5 {[%clk 0:02:42]} 13. Kb1 {[%clk 0:03:00.7]} 13... a5 {[%clk
0:02:39.8]} 14. Bh6 {[%clk 0:02:56.1]} 14... a4 {[%clk 0:02:34.3]} 15. Bxg7
{[%clk 0:02:52.8]} 15... Kxg7 {[%clk 0:02:33.3]} 16. Bxa4 {[%clk 0:02:43.1]}
16... Nc4 {[%clk 0:02:32.6]} 17. Qg5 {[%clk 0:02:40]} 17... Rc5 {[%clk
0:02:29.5]} 18. Qg3 {[%clk 0:02:36.8]} 18... Bxa4 {[%clk 0:02:07.4]} 19. Nxa4
{[%clk 0:02:35.6]} 19... Ra5 {[%clk 0:02:07.6]} 20. Nc3 {[%clk 0:02:32.9]} 20...
Qb6 {[%clk 0:02:06.1]} 21. Nb3 {[%clk 0:02:32.1]} 21... Ra7 {[%clk 0:01:53.3]}
22. Rd4 {[%clk 0:02:28]} 22... Rc8 {[%clk 0:01:47.7]} 23. Rhd1 {[%clk
0:02:25.3]} 23... Na3+ {[%clk 0:01:44.9]} 24. bxa3 {[%clk 0:02:20.4]} 24... Rxc3
{[%clk 0:01:44.6]} 25. e5 {[%clk 0:02:16.8]} 25... dxe5 {[%clk 0:01:15.7]} 26.
Qxe5 {[%clk 0:02:17.7]} 26... Rxa3 {[%clk 0:01:09.8]} 27. R4d2 {[%clk
0:01:44.7]} 27... Rc5 {[%clk 0:01:00.3]} 28. Qxe7 {[%clk 0:01:33.7]} 28... Rca5
{[%clk 0:00:59.9]} 29. Rd8 {[%clk 0:01:29.2]} 29... Nh7 {[%clk 0:00:29.6]} 30.
R8d7 {[%clk 0:01:15.9]} 30... Rf5 {[%clk 0:00:25.3]} 31. Qxa3 {[%clk 0:01:10.5]}
31... Nf8 {[%clk 0:00:20.6]} 32. Rd8 {[%clk 0:01:07.7]} 32... Ne6 {[%clk
0:00:20.7]} 33. Qb2+ {[%clk 0:01:07.5]} 33... Rf6 {[%clk 0:00:18.2]} 34. Rg8+
{[%clk 0:01:06.7]} 34... Kxg8 {[%clk 0:00:17.2]} 35. Qxf6 {[%clk 0:01:07.3]}
35... Nc5 {[%clk 0:00:17]} 36. Qxb6 {[%clk 0:01:05.4]} 1-0

[Event "*** SCC Grand Prix: Titled Tuesday Blitz"]
[Site "Chess.com"]
[Date "2020.08.25"]
[Round "7"]
[White "Playgood28"]
[Black "Matveev_Vladimir"]
[Result "0-1"]
[WhiteElo "2348"]
[BlackElo "2544"]
[TimeControl "180+1"]
[EndTime "11:18:49 PDT"]
[Termination "Matveev_Vladimir won by resignation"]

1. d4 {[%clk 0:03:00.9]} 1... Nf6 {[%clk 0:02:59.8]} 2. c4 {[%clk 0:03:00.6]}
2... g6 {[%clk 0:02:59.9]} 3. Nc3 {[%clk 0:03:00.4]} 3... Bg7 {[%clk 0:03:00.5]}
4. Nf3 {[%clk 0:02:59.6]} 4... O-O {[%clk 0:03:00.9]} 5. e4 {[%clk 0:02:58.9]}
5... d6 {[%clk 0:03:01]} 6. Be2 {[%clk 0:02:58.5]} 6... e5 {[%clk 0:03:01.4]} 7.
O-O {[%clk 0:02:57.9]} 7... Nc6 {[%clk 0:03:01.5]} 8. dxe5 {[%clk 0:02:57.8]}
8... dxe5 {[%clk 0:03:00.1]} 9. Bg5 {[%clk 0:02:57.3]} 9... Bd7 {[%clk
0:02:48.5]} 10. Nd5 {[%clk 0:02:47.1]} 10... Be6 {[%clk 0:02:48]} 11. Nxf6+
{[%clk 0:02:27.9]} 11... Bxf6 {[%clk 0:02:46.6]} 12. Qxd8 {[%clk 0:02:26]} 12...
Bxd8 {[%clk 0:02:45.7]} 13. Rfd1 {[%clk 0:02:18.2]} 13... Bxg5 {[%clk 0:02:39]}
14. Nxg5 {[%clk 0:02:17.8]} 14... Nd4 {[%clk 0:02:39.6]} 15. Bf1 {[%clk
0:02:16.6]} 15... Bg4 {[%clk 0:02:24]} 16. f3 {[%clk 0:02:08.9]} 16... Bc8
{[%clk 0:02:23]} 17. f4 {[%clk 0:01:54.6]} 17... Bg4 {[%clk 0:01:59.6]} 18. Rd3
{[%clk 0:01:41.2]} 18... Rad8 {[%clk 0:01:14.6]} 19. fxe5 {[%clk 0:01:32.2]}
19... h6 {[%clk 0:01:08]} 20. h3 {[%clk 0:01:25.4]} 20... Be2 {[%clk 0:00:43.4]}
21. Rxd4 {[%clk 0:00:40.6]} 21... Rxd4 {[%clk 0:00:44.3]} 22. Bxe2 {[%clk
0:00:28.4]} 22... hxg5 {[%clk 0:00:44.3]} 23. Bf3 {[%clk 0:00:27.7]} 23... Rxc4
{[%clk 0:00:36.6]} 24. Rd1 {[%clk 0:00:25.2]} 24... Re8 {[%clk 0:00:35.2]} 0-1

[Event "*** SCC Grand Prix: Titled Tuesday Blitz"]
[Site "Chess.com"]
[Date "2020.08.25"]
[Round "7"]
[White "OparinGrigoriy"]
[Black "chessdjw"]
[Result "1-0"]
[WhiteElo "2969"]
[BlackElo "2590"]
[TimeControl "180+1"]
[EndTime "11:18:55 PDT"]
[Termination "OparinGrigoriy won on time"]

1. d4 {[%clk 0:02:59.8]} 1... Nf6 {[%clk 0:02:48.5]} 2. Nf3 {[%clk 0:02:59.9]}
2... g6 {[%clk 0:02:47]} 3. c4 {[%clk 0:03:00.2]} 3... Bg7 {[%clk 0:02:47]} 4.
g3 {[%clk 0:03:00]} 4... O-O {[%clk 0:02:46.3]} 5. Bg2 {[%clk 0:03:00.2]} 5...
c6 {[%clk 0:02:41.7]} 6. b3 {[%clk 0:02:59.7]} 6... d5 {[%clk 0:02:42]} 7. Bb2
{[%clk 0:03:00]} 7... dxc4 {[%clk 0:02:37.3]} 8. bxc4 {[%clk 0:02:59.7]} 8... c5
{[%clk 0:02:37.8]} 9. O-O {[%clk 0:02:51.1]} 9... cxd4 {[%clk 0:02:37.4]} 10.
Nxd4 {[%clk 0:02:52]} 10... Qb6 {[%clk 0:02:37.2]} 11. Qc1 {[%clk 0:02:50.9]}
11... Rd8 {[%clk 0:02:36.7]} 12. e3 {[%clk 0:02:47.8]} 12... Nc6 {[%clk
0:02:36]} 13. Na3 {[%clk 0:02:43.2]} 13... Bd7 {[%clk 0:02:30.6]} 14. Rd1 {[%clk
0:02:41.4]} 14... Rac8 {[%clk 0:02:30.2]} 15. Rb1 {[%clk 0:02:38.4]} 15... Qa6
{[%clk 0:02:20]} 16. Nab5 {[%clk 0:02:29.8]} 16... Nxd4 {[%clk 0:02:05.5]} 17.
Bxd4 {[%clk 0:02:30.7]} 17... Be6 {[%clk 0:01:33]} 18. c5 {[%clk 0:02:25.9]}
18... Bxa2 {[%clk 0:01:20.1]} 19. Ra1 {[%clk 0:02:22.2]} 19... Qxb5 {[%clk
0:01:08.1]} 20. Rxa2 {[%clk 0:02:22.7]} 20... b6 {[%clk 0:00:57.8]} 21. c6
{[%clk 0:02:22.4]} 21... Nd5 {[%clk 0:00:43.9]} 22. Bxg7 {[%clk 0:02:17.8]}
22... Kxg7 {[%clk 0:00:44.8]} 23. Qa1+ {[%clk 0:02:07]} 23... Kg8 {[%clk
0:00:19]} 24. Rxa7 {[%clk 0:02:07.1]} 24... Nc3 {[%clk 0:00:15.5]} 25. Rf1
{[%clk 0:02:00.6]} 25... Rxc6 {[%clk 0:00:12.3]} 26. Bxc6 {[%clk 0:01:57.6]}
26... Ne2+ {[%clk 0:00:11.9]} 27. Kg2 {[%clk 0:01:57.6]} 27... Qxc6+ {[%clk
0:00:12.5]} 28. f3 {[%clk 0:01:57.3]} 28... Nc3 {[%clk 0:00:12]} 29. Rxe7 {[%clk
0:01:46.3]} 29... Rd2+ {[%clk 0:00:11.3]} 30. Rf2 {[%clk 0:01:46.4]} 30... Rxf2+
{[%clk 0:00:06.1]} 31. Kxf2 {[%clk 0:01:47.3]} 31... Qf6 {[%clk 0:00:06.5]} 32.
Qa8+ {[%clk 0:01:38.1]} 32... Kg7 {[%clk 0:00:05.9]} 33. Re8 {[%clk 0:01:38.6]}
33... h5 {[%clk 0:00:02.9]} 34. Rg8+ {[%clk 0:01:25.8]} 34... Kh7 {[%clk
0:00:02.6]} 35. Rd8 {[%clk 0:01:26.4]} 35... b5 {[%clk 0:00:02.4]} 36. Kg2
{[%clk 0:01:23.5]} 36... b4 {[%clk 0:00:02.5]} 37. Rb8 {[%clk 0:01:17.1]} 1-0

[Event "*** SCC Grand Prix: Titled Tuesday Blitz"]
[Site "Chess.com"]
[Date "2020.08.25"]
[Round "7"]
[White "x-0414717230"]
[Black "GoldenShare"]
[Result "1-0"]
[WhiteElo "2714"]
[BlackElo "2494"]
[TimeControl "180+1"]
[EndTime "11:18:59 PDT"]
[Termination "x-0414717230 won by checkmate"]

1. d4 {[%clk 0:03:00.9]} 1... d5 {[%clk 0:02:59.4]} 2. c4 {[%clk 0:03:01.4]}
2... dxc4 {[%clk 0:03:00.3]} 3. e3 {[%clk 0:03:00.9]} 3... Nf6 {[%clk 0:03:00]}
4. Bxc4 {[%clk 0:03:01.2]} 4... e6 {[%clk 0:03:00.9]} 5. Nf3 {[%clk 0:03:01.6]}
5... a6 {[%clk 0:03:01.8]} 6. O-O {[%clk 0:03:00.8]} 6... b5 {[%clk 0:03:02.1]}
7. Bb3 {[%clk 0:03:00.9]} 7... Bb7 {[%clk 0:03:03]} 8. a4 {[%clk 0:03:01.4]}
8... b4 {[%clk 0:03:02.6]} 9. Nbd2 {[%clk 0:03:01.8]} 9... c5 {[%clk 0:03:03.2]}
10. e4 {[%clk 0:03:01.9]} 10... cxd4 {[%clk 0:03:01.2]} 11. e5 {[%clk
0:03:01.7]} 11... Nfd7 {[%clk 0:02:55.6]} 12. Nc4 {[%clk 0:02:58.7]} 12... Nc5
{[%clk 0:02:55.6]} 13. Bc2 {[%clk 0:02:54.4]} 13... d3 {[%clk 0:02:53]} 14. Bb1
{[%clk 0:02:52.8]} 14... Be7 {[%clk 0:02:41.8]} 15. Bg5 {[%clk 0:02:45.2]} 15...
f6 {[%clk 0:02:15.2]} 16. exf6 {[%clk 0:02:43.8]} 16... gxf6 {[%clk 0:02:16.1]}
17. Bh6 {[%clk 0:02:43.3]} 17... Rg8 {[%clk 0:02:05.8]} 18. Ne3 {[%clk 0:02:27]}
18... Nc6 {[%clk 0:01:50]} 19. Re1 {[%clk 0:02:21.1]} 19... Nd4 {[%clk
0:01:49.2]} 20. Nxd4 {[%clk 0:02:20.8]} 20... Qxd4 {[%clk 0:01:46]} 21. Qh5+
{[%clk 0:02:19.5]} 21... Rg6 {[%clk 0:01:39.5]} 22. a5 {[%clk 0:01:54.3]} 22...
Rc8 {[%clk 0:01:14.6]} 23. Ba2 {[%clk 0:01:51.5]} 23... b3 {[%clk 0:01:13]} 24.
Bb1 {[%clk 0:01:50.3]} 24... Ne4 {[%clk 0:01:02.3]} 25. Bf4 {[%clk 0:01:39]}
25... Nd2 {[%clk 0:00:35.8]} 26. Bg3 {[%clk 0:01:36.9]} 26... Rc5 {[%clk
0:00:17.7]} 27. Qxh7 {[%clk 0:01:36.1]} 27... Rcg5 {[%clk 0:00:18.4]} 28. Qh8+
{[%clk 0:01:19.8]} 28... Rg8 {[%clk 0:00:17.7]} 29. Qh3 {[%clk 0:01:19.8]} 29...
Qe4 {[%clk 0:00:12.9]} 30. Bxd3 {[%clk 0:01:09.5]} 30... Qxd3 {[%clk 0:00:12.8]}
31. Qxe6 {[%clk 0:01:09.9]} 31... Qe4 {[%clk 0:00:09.6]} 32. Qh3 {[%clk
0:01:04.9]} 32... Kf7 {[%clk 0:00:06]} 33. Rad1 {[%clk 0:01:04.8]} 33... Nc4
{[%clk 0:00:04.6]} 34. Nxc4 {[%clk 0:01:01]} 34... Qxc4 {[%clk 0:00:05.5]} 35.
Rxe7+ {[%clk 0:01:01.2]} 35... Kg6 {[%clk 0:00:03]} 36. Qh7# {[%clk 0:01:00.4]}
1-0

[Event "*** SCC Grand Prix: Titled Tuesday Blitz"]
[Site "Chess.com"]
[Date "2020.08.25"]
[Round "7"]
[White "Brave_spirit12"]
[Black "davigator"]
[Result "1-0"]
[WhiteElo "2544"]
[BlackElo "2338"]
[TimeControl "180+1"]
[EndTime "11:19:03 PDT"]
[Termination "Brave_spirit12 won by checkmate"]

1. e4 {[%clk 0:03:00.5]} 1... c5 {[%clk 0:02:59]} 2. c3 {[%clk 0:03:00.6]} 2...
Nf6 {[%clk 0:02:58.1]} 3. e5 {[%clk 0:03:00.3]} 3... Nd5 {[%clk 0:02:58.6]} 4.
d4 {[%clk 0:03:01.2]} 4... cxd4 {[%clk 0:02:59.1]} 5. cxd4 {[%clk 0:03:02.1]}
5... d6 {[%clk 0:02:58.5]} 6. Nf3 {[%clk 0:03:02.4]} 6... Nc6 {[%clk 0:02:58.3]}
7. Nc3 {[%clk 0:03:02.3]} 7... Nxc3 {[%clk 0:02:55.8]} 8. bxc3 {[%clk
0:03:03.2]} 8... d5 {[%clk 0:02:56.4]} 9. Bd3 {[%clk 0:03:02.9]} 9... e6 {[%clk
0:02:47.4]} 10. h4 {[%clk 0:02:59.7]} 10... h6 {[%clk 0:02:43.7]} 11. Bc2 {[%clk
0:02:58.6]} 11... Be7 {[%clk 0:02:42.4]} 12. h5 {[%clk 0:02:58.7]} 12... Bd7
{[%clk 0:02:42.3]} 13. O-O {[%clk 0:02:52.3]} 13... Rc8 {[%clk 0:02:41.6]} 14.
Rb1 {[%clk 0:02:52.3]} 14... Na5 {[%clk 0:02:41]} 15. Qd3 {[%clk 0:02:48.5]}
15... b6 {[%clk 0:02:39.7]} 16. Bf4 {[%clk 0:02:46.9]} 16... Nc4 {[%clk
0:02:38.4]} 17. Nd2 {[%clk 0:02:42.6]} 17... Na3 {[%clk 0:02:37.6]} 18. Rb3
{[%clk 0:02:39.1]} 18... Nxc2 {[%clk 0:02:36.4]} 19. Qxc2 {[%clk 0:02:40]} 19...
Ba4 {[%clk 0:02:36.2]} 20. Qd3 {[%clk 0:02:40.6]} 20... Bxb3 {[%clk 0:02:35.8]}
21. axb3 {[%clk 0:02:41.5]} 21... O-O {[%clk 0:02:35.3]} 22. Nf3 {[%clk
0:02:39.2]} 22... Qc7 {[%clk 0:02:33.4]} 23. Rc1 {[%clk 0:02:38.8]} 23... Qd8
{[%clk 0:02:15.8]} 24. Qe3 {[%clk 0:02:33.4]} 24... Kh7 {[%clk 0:02:14.6]} 25.
Qd3+ {[%clk 0:02:32.6]} 25... Kh8 {[%clk 0:02:14.8]} 26. Qe3 {[%clk 0:02:32.6]}
26... Qe8 {[%clk 0:02:07]} 27. Ra1 {[%clk 0:02:26.1]} 27... Rc7 {[%clk
0:02:02.8]} 28. Re1 {[%clk 0:02:11.1]} 28... Rb7 {[%clk 0:01:52.9]} 29. Bxh6
{[%clk 0:01:55.4]} 29... f5 {[%clk 0:01:42.5]} 30. Bf4 {[%clk 0:01:51.4]} 30...
Qxh5 {[%clk 0:01:40]} 31. g3 {[%clk 0:01:51.1]} 31... Qh3 {[%clk 0:01:36.9]} 32.
Bg5 {[%clk 0:01:43.9]} 32... Qh5 {[%clk 0:01:13.9]} 33. Kg2 {[%clk 0:01:42.5]}
33... Kg8 {[%clk 0:01:13.6]} 34. Rh1 {[%clk 0:01:40]} 34... Qg6 {[%clk 0:01:13]}
35. Qf4 {[%clk 0:01:33.8]} 35... Bxg5 {[%clk 0:01:10.5]} 36. Nxg5 {[%clk
0:01:34.7]} 36... Rfb8 {[%clk 0:00:53.6]} 37. Qh4 {[%clk 0:01:33.6]} 37... Kf8
{[%clk 0:00:53.8]} 38. Nh7+ {[%clk 0:01:23]} 38... Kf7 {[%clk 0:00:49.9]} 39.
Ng5+ {[%clk 0:01:22.9]} 39... Ke8 {[%clk 0:00:49.9]} 40. c4 {[%clk 0:01:14.5]}
40... dxc4 {[%clk 0:00:45.9]} 41. bxc4 {[%clk 0:01:15.4]} 41... Rc8 {[%clk
0:00:41.5]} 42. d5 {[%clk 0:01:15.1]} 42... exd5 {[%clk 0:00:35.8]} 43. cxd5
{[%clk 0:01:16]} 43... Kd7 {[%clk 0:00:36.1]} 44. e6+ {[%clk 0:01:13.5]} 44...
Kd6 {[%clk 0:00:33.8]} 45. Qf4+ {[%clk 0:01:09.4]} 45... Ke7 {[%clk 0:00:33.2]}
46. d6+ {[%clk 0:01:09.5]} 46... Kf6 {[%clk 0:00:29.3]} 47. Qd4+ {[%clk
0:01:09.6]} 47... Kxg5 {[%clk 0:00:26.7]} 48. Qh4# {[%clk 0:01:10.2]} 1-0

[Event "*** SCC Grand Prix: Titled Tuesday Blitz"]
[Site "Chess.com"]
[Date "2020.08.25"]
[Round "7"]
[White "maximnovik"]
[Black "el-roedor"]
[Result "1-0"]
[WhiteElo "2486"]
[BlackElo "2606"]
[TimeControl "180+1"]
[EndTime "11:19:14 PDT"]
[Termination "maximnovik won by resignation"]

1. d4 {[%clk 0:03:00.9]} 1... Nf6 {[%clk 0:02:59.7]} 2. Bg5 {[%clk 0:03:00.7]}
2... Ne4 {[%clk 0:02:58.8]} 3. Bh4 {[%clk 0:03:00.8]} 3... d5 {[%clk 0:02:57.7]}
4. f3 {[%clk 0:03:01.3]} 4... Nf6 {[%clk 0:02:54.7]} 5. Nc3 {[%clk 0:03:01.6]}
5... c5 {[%clk 0:02:42.4]} 6. e4 {[%clk 0:02:57]} 6... dxe4 {[%clk 0:02:31.6]}
7. dxc5 {[%clk 0:02:55.3]} 7... Qa5 {[%clk 0:02:21.6]} 8. Bb5+ {[%clk
0:02:45.2]} 8... Bd7 {[%clk 0:02:18.2]} 9. Qe2 {[%clk 0:02:34.6]} 9... a6 {[%clk
0:02:09.9]} 10. Bxd7+ {[%clk 0:02:26.2]} 10... Nbxd7 {[%clk 0:02:10.8]} 11. fxe4
{[%clk 0:02:25.9]} 11... e5 {[%clk 0:01:54.7]} 12. Nf3 {[%clk 0:02:17]} 12...
Bxc5 {[%clk 0:01:52.5]} 13. O-O-O {[%clk 0:02:15.2]} 13... Bb4 {[%clk
0:01:11.8]} 14. Bxf6 {[%clk 0:01:24.7]} 14... gxf6 {[%clk 0:00:31.1]} 15. Nd5
{[%clk 0:01:20.9]} 15... Bc5 {[%clk 0:00:16.9]} 16. Kb1 {[%clk 0:01:19.8]} 16...
O-O-O {[%clk 0:00:16.5]} 17. c3 {[%clk 0:01:16.6]} 17... Bf8 {[%clk 0:00:11.6]}
18. Rd2 {[%clk 0:01:12.3]} 18... Kb8 {[%clk 0:00:11.7]} 19. Rhd1 {[%clk
0:01:11.4]} 19... Bh6 {[%clk 0:00:11.9]} 20. Rd3 {[%clk 0:01:11.1]} 20... Qc5
{[%clk 0:00:08.6]} 21. b4 {[%clk 0:01:05.3]} 21... Qc4 {[%clk 0:00:04.3]} 22.
Nxf6 {[%clk 0:01:02]} 22... Ka7 {[%clk 0:00:01.5]} 23. Nxd7 {[%clk 0:01:00.2]}
23... Rxd7 {[%clk 0:00:01.8]} 24. Qf2+ {[%clk 0:00:55.3]} 24... Ka8 {[%clk
0:00:01.7]} 25. Rxd7 {[%clk 0:00:53.6]} 25... Qxe4+ {[%clk 0:00:02.4]} 26. Kb2
{[%clk 0:00:52.9]} 26... Be3 {[%clk 0:00:02.8]} 27. Qc2 {[%clk 0:00:51.1]} 27...
Qc6 {[%clk 0:00:01.9]} 28. Nxe5 {[%clk 0:00:46.5]} 28... Qb6 {[%clk 0:00:01.8]}
29. Nc4 {[%clk 0:00:44.7]} 29... Qh6 {[%clk 0:00:02.5]} 30. Qe4 {[%clk 0:00:40]}
30... Ba7 {[%clk 0:00:01.8]} 1-0

[Event "*** SCC Grand Prix: Titled Tuesday Blitz"]
[Site "Chess.com"]
[Date "2020.08.25"]
[Round "7"]
[White "Parhamov"]
[Black "chito89"]
[Result "1-0"]
[WhiteElo "3014"]
[BlackElo "2784"]
[TimeControl "180+1"]
[EndTime "11:19:15 PDT"]
[Termination "Parhamov won on time"]

1. e4 {[%clk 0:03:00.9]} 1... c5 {[%clk 0:02:57.1]} 2. Nc3 {[%clk 0:03:01]} 2...
e6 {[%clk 0:02:56.7]} 3. Nf3 {[%clk 0:03:01]} 3... a6 {[%clk 0:02:55.6]} 4. a4
{[%clk 0:02:57.9]} 4... Nc6 {[%clk 0:02:54.9]} 5. g3 {[%clk 0:02:57.2]} 5... Nf6
{[%clk 0:02:52.4]} 6. Bg2 {[%clk 0:02:57.4]} 6... d5 {[%clk 0:02:36.5]} 7. d3
{[%clk 0:02:57.1]} 7... Be7 {[%clk 0:02:29.2]} 8. O-O {[%clk 0:02:56.7]} 8...
O-O {[%clk 0:02:29.7]} 9. Re1 {[%clk 0:02:51]} 9... d4 {[%clk 0:02:27.8]} 10.
Nb1 {[%clk 0:02:46.8]} 10... e5 {[%clk 0:02:28.2]} 11. Bg5 {[%clk 0:02:37.1]}
11... Ne8 {[%clk 0:02:20.6]} 12. h4 {[%clk 0:02:30.6]} 12... Bg4 {[%clk
0:02:16.5]} 13. Bxe7 {[%clk 0:02:16.8]} 13... Qxe7 {[%clk 0:02:17.4]} 14. Nbd2
{[%clk 0:02:17]} 14... Nd6 {[%clk 0:02:17.2]} 15. c3 {[%clk 0:02:16.8]} 15... b5
{[%clk 0:02:13.5]} 16. axb5 {[%clk 0:02:15.4]} 16... axb5 {[%clk 0:02:14.4]} 17.
Qb3 {[%clk 0:02:15.7]} 17... Rab8 {[%clk 0:01:20.9]} 18. Qd5 {[%clk 0:02:09.4]}
18... Rfc8 {[%clk 0:01:14.1]} 19. Ra6 {[%clk 0:01:53]} 19... dxc3 {[%clk
0:01:08.2]} 20. bxc3 {[%clk 0:01:52.7]} 20... Be6 {[%clk 0:00:26.7]} 21. Qxc5
{[%clk 0:01:46]} 21... Qb7 {[%clk 0:00:27.1]} 22. Rea1 {[%clk 0:01:39.6]} 22...
b4 {[%clk 0:00:04.2]} 23. cxb4 {[%clk 0:01:20.1]} 23... Nb5 {[%clk 0:00:04.2]}
24. Rxc6 {[%clk 0:01:15.2]} 24... Rxc6 {[%clk 0:00:03.6]} 25. Qxe5 {[%clk
0:01:15.2]} 25... Rbc8 {[%clk 0:00:04.2]} 26. d4 {[%clk 0:01:14.1]} 26... f6
{[%clk 0:00:04.6]} 27. Qf4 {[%clk 0:01:13.2]} 27... Rc1+ {[%clk 0:00:03.4]} 28.
Rxc1 {[%clk 0:01:12.6]} 28... Rxc1+ {[%clk 0:00:04.3]} 29. Kh2 {[%clk
0:01:13.3]} 29... Qc7 {[%clk 0:00:05.2]} 30. e5 {[%clk 0:01:04.6]} 30... Rc2
{[%clk 0:00:05.6]} 31. Ne4 {[%clk 0:01:02.5]} 31... Bd5 {[%clk 0:00:04.5]} 32.
Qe3 {[%clk 0:00:53.2]} 32... Bxe4 {[%clk 0:00:04.7]} 33. Qxe4 {[%clk 0:00:54.1]}
33... Rxf2 {[%clk 0:00:05.4]} 34. Qd5+ {[%clk 0:00:53.6]} 1-0